bitfinex/quotes_ETHUSD_20250115
["timestamp","ask_amount","ask_price","bid_price","bid_amount"]
[1736934516773,0.13190724,3212.8,3212.7,5.236154]
[1736934518759,0.13190724,3212.8,3212.7,0.625]
[1736934519276,0.95870724,3212.8,3212.7,0.625]
[1736934519474,0.99761979,3212.8,3212.7,0.625]
[1736934519684,0.13190724,3212.8,3212.7,0.625]
[1736934520760,0.13190724,3212.8,3212.7,1.3938]
[1736934521497,0.18845845,3212.8,3212.7,1.3938]
[1736934523105,0.18845845,3212.8,3212.7,0.625]
[1736934525507,0.13190724,3212.8,3212.7,0.625]
[1736934526211,0.18845845,3212.8,3212.7,0.625]
[1736934526386,0.13190724,3212.8,3212.7,0.625]
[1736934526572,0.18845845,3212.8,3212.7,0.625]
[1736934526969,0.13190724,3212.8,3212.7,0.625]
[1736934527187,0.18845845,3212.8,3212.7,0.625]
[1736934528078,0.18845845,3212.8,3212.7,4.938413]
[1736934530631,0.18845845,3212.8,3212.7,0.625]
[1736934532807,0.18845845,3212.8,3212.7,0.818]
[1736934533718,0.18845845,3212.8,3212.7,0.625]
[1736934533919,4.62699845,3212.8,3212.7,0.625]
[1736934534121,7.6659112,3212.8,3212.7,0.625]
[1736934534431,8.39358957,3212.8,3212.7,0.625]
[1736934534625,11.34717623,3212.8,3212.7,0.625]
[1736934538451,11.40393921,3212.8,3212.7,0.625]
[1736934544773,10.85393921,3212.8,3212.7,0.625]
[1736934545325,0.24522143,3212.8,3212.7,0.625]
[1736934545557,0.18845845,3212.8,3212.7,0.625]
[1736934547170,0.227368,3212.8,3212.7,0.625]
[1736934547368,0.18845845,3212.8,3212.7,0.625]
[1736934548271,0.73845845,3212.8,3212.7,0.625]
[1736934550804,0.18845845,3212.8,3212.7,0.625]
[1736934551988,0.22736789,3212.8,3212.7,0.625]
[1736934552291,1.46634068,3212.8,3212.7,0.625]
[1736934552618,4.53997124,3212.8,3212.7,0.625]
[1736934552972,0.73845845,3212.8,3212.7,0.625]
[1736934553823,0.77737096,3212.8,3212.7,0.625]
[1736934554029,0.73845845,3212.8,3212.7,0.625]
[1736934555291,0.77736817,3212.8,3212.7,0.625]
[1736934555838,9.80458511,3212.8,3212.7,0.625]
[1736934556114,11.58603486,3212.8,3212.7,0.625]
[1736934557033,11.64279784,3212.8,3212.7,0.625]
[1736934560531,0.24522143,3212.8,3212.7,0.625]
[1736934560912,0.18845845,3212.8,3212.7,0.625]
[1736934561432,0.18845845,3212.8,3212.7,1.4348]
[1736934561952,0.13190724,3212.8,3212.7,4.54744]
[1736934562454,0.13190724,3212.8,3212.7,4.57856276]
[1736934562655,0.13190724,3212.8,3212.7,5.05571904]
[1736934569513,0.13190724,3212.8,3212.7,5.30571904]
[1736934576637,7.24e-06,3212.8,3212.7,5.30571904]
[1736934577917,7.24e-06,3212.8,3212.7,5.49971904]
[1736934582547,7.24e-06,3212.8,3212.7,8.49971904]
[1736934582716,7.24e-06,3212.8,3212.7,8.46859628]
[1736934584734,7.24e-06,3212.8,3212.7,8.21859628]
[1736934584932,7.24e-06,3212.8,3212.7,5.21859628]
[1736934585270,7.24e-06,3212.8,3212.7,5.02459628]
[1736934585467,7.24e-06,3212.8,3212.7,5.21859628]
[1736934588633,7.24e-06,3212.8,3212.7,5.02459628]
[1736934588857,7.24e-06,3212.8,3212.7,3.73764]
[1736934589176,0.55000724,3212.8,3212.7,0.819]
[1736934589322,1.36010724,3212.8,3212.7,0.819]
[1736934589721,1.36010724,3212.8,3212.7,0.625]
[1736934591031,7.47264724,3212.8,3212.7,0.625]
[1736934591225,8.52481666,3212.8,3212.7,0.625]
[1736934591843,8.52481666,3212.8,3211.3,0.0011528]
[1736934591844,0.05655121,3211.4,3211.3,0.0011528]
[1736934592043,0.60655121,3211.4,3211.3,0.0011528]
[1736934594304,0.05655121,3211.4,3211.3,0.0011528]
[1736934594897,0.05655121,3211.4,3211.3,3.14629156]
[1736934595062,0.05655121,3211.7,3211.3,3.48022072]
[1736934595267,0.05655121,3211.7,3211.5,3.11372]
[1736934595504,0.05655121,3211.7,3211.6,3.30671]
[1736934596312,0.05655121,3212.0,3211.8,3.1135]
[1736934596511,0.05655121,3212.0,3211.8,3.14462925]
[1736934596802,0.05655121,3212.3,3211.9,3.42788293]
[1736934597013,0.05655121,3212.1,3212.0,0.03112924]
[1736934597607,0.05655121,3212.1,3211.8,3.11347]
[1736934597761,0.05655121,3212.0,3211.8,3.11347]
[1736934597955,0.05655121,3212.0,3211.8,3.47524634]
[1736934598161,0.05655121,3212.0,3211.8,3.444117]
[1736934598387,0.05655121,3212.0,3211.8,3.11347]
[1736934598864,0.05655121,3212.0,3211.8,3.14459932]
[1736934599284,0.05655121,3212.2,3211.8,3.14459932]
[1736934599700,0.8101,3212.4,3211.3,0.33508196]
[1736934599701,0.05655121,3212.0,3211.3,0.33508196]
[1736934599919,0.05655121,3212.0,3211.9,0.193]
[1736934600215,0.05655121,3211.5,3211.3,0.0011528]
[1736934600423,0.05655121,3211.5,3211.4,0.193]
[1736934602272,0.05655121,3211.5,3211.3,0.0011528]
[1736934603779,0.09547528,3211.5,3211.3,0.0011528]
[1736934604574,3.09547528,3211.5,3211.3,0.0011528]
[1736934604778,0.95521256,3211.4,3211.3,0.0011528]
[1736934605228,7.06911256,3211.4,3211.3,0.0011528]
[1736934605436,7.83428619,3211.4,3211.3,0.0011528]
[1736934605742,8.80999689,3211.4,3211.3,0.0011528]
[1736934606237,0.05655121,3210.1,3209.9,0.1657842]
[1736934606380,9.87294666,3210.0,3209.9,0.1657842]
[1736934606582,10.42294666,3210.0,3209.9,0.1657842]
[1736934606829,0.86065121,3208.9,3208.8,3.90249596]
[1736934606979,0.86065121,3208.9,3208.3,0.193]
[1736934607329,0.05655121,3208.7,3208.2,3.90249596]
[1736934607631,0.05655121,3208.3,3208.2,3.90249596]
[1736934607835,0.05655121,3208.7,3208.2,3.90249596]
[1736934607977,0.05655121,3208.7,3208.3,0.22416567]
[1736934608178,0.05655121,3208.7,3208.3,0.193]
[1736934608625,0.05655121,3208.7,3208.4,0.03116731]
[1736934608777,0.05655121,3208.7,3208.2,3.11697]
[1736934608986,0.05655121,3208.7,3208.3,0.193]
[1736934609184,0.05655121,3208.7,3208.3,0.22416498]
[1736934609485,0.05655121,3208.7,3208.4,0.193]
[1736934609679,0.05655121,3208.7,3208.4,0.03116497]
[1736934609885,0.8041,3209.3,3208.1,0.005]
[1736934609886,0.05655121,3208.4,3208.1,0.005]
[1736934610121,0.05655121,3208.2,3208.1,0.198]
[1736934610539,0.05655121,3208.2,3208.1,0.005]
[1736934610540,0.86065121,3208.2,3208.1,0.005]
[1736934610703,0.05655121,3208.4,3208.1,0.005]
[1736934611006,0.05655121,3208.4,3208.2,3.11701]
[1736934611216,0.05655121,3208.4,3208.1,0.03616605]
[1736934611530,0.05655121,3208.4,3208.1,0.005]
[1736934612202,0.05655121,3208.4,3208.2,0.193]
[1736934612401,0.05655121,3208.4,3208.1,0.005]
[1736934612595,0.05655121,3208.4,3208.3,3.11691]
[1736934613216,0.05655121,3208.4,3208.2,0.193]
[1736934613732,0.05655121,3208.6,3208.5,3.11672]
[1736934613887,0.05655121,3208.8,3208.6,3.11656]
[1736934614087,0.05655121,3208.8,3208.3,0.78136605]
[1736934614336,0.05655121,3208.6,3208.3,3.86705]
[1736934614626,0.05655121,3208.6,3208.4,3.11672]
[1736934614786,0.05655121,3208.6,3208.5,3.11672]
[1736934615119,0.05655121,3208.8,3208.3,0.03116223]
[1736934615296,0.8041,3209.3,3208.3,0.03116223]
[1736934615297,0.05655121,3208.6,3208.3,0.193]
[1736934615494,0.05655121,3208.6,3208.3,0.22416582]
[1736934615810,0.05655121,3208.6,3208.4,3.11677]
[1736934616017,0.05655121,3208.6,3208.4,3.52588358]
[1736934616222,0.05655121,3208.6,3208.5,3.34088424]
[1736934616843,0.05655121,3208.6,3208.5,3.30972]
[1736934617048,0.05655121,3208.8,3208.5,3.30972]
[1736934617542,0.05655121,3208.6,3208.5,3.30972]
[1736934617736,0.05555121,3208.6,3208.5,3.30972]
[1736934618064,0.8041,3209.3,3208.1,3.12204]
[1736934618065,0.05555121,3208.3,3208.1,3.12209]
[1736934619416,0.05555121,3208.5,3208.2,3.14813659]
[1736934619820,0.05555121,3208.5,3208.3,3.1169]
[1736934620507,0.05555121,3208.5,3208.3,0.03116562]
[1736934620724,0.05555121,3208.5,3208.1,0.03616563]
[1736934621042,0.05555121,3208.5,3208.4,3.11681]
[1736934621454,0.05555121,3208.5,3208.4,3.428491]
[1736934622028,0.05555121,3209.6,3208.5,0.7971]
[1736934622228,0.05555121,3209.6,3209.3,3.11591]
[1736934622463,0.05555121,3209.6,3209.3,0.193]
[1736934624782,0.05555121,3209.8,3209.4,0.03115472]
[1736934625284,0.05555121,3210.0,3209.5,3.11574]
[1736934625454,0.05555121,3210.0,3209.4,3.14696472]
[1736934625969,0.05555121,3209.6,3209.4,0.03115472]
[1736934626284,0.05555121,3209.6,3209.2,3.91313]
[1736934626478,0.05555121,3209.6,3209.5,0.193]
[1736934627887,0.05555121,3209.6,3209.2,0.193]
[1736934628196,0.05555121,3209.6,3209.1,0.193]
[1736934628197,0.05555121,3209.4,3209.1,0.193]
[1736934628492,0.05555121,3209.2,3209.1,0.193]
[1736934628861,0.05555121,3209.5,3209.1,0.193]
[1736934629079,0.05555121,3209.3,3209.1,0.193]
[1736934629244,0.05555121,3209.2,3209.1,0.193]
[1736934629451,0.87875121,3209.2,3209.1,0.193]
[1736934630379,1.27821633,3209.2,3208.8,0.193]
[1736934630593,0.05555121,3208.9,3208.8,0.193]
[1736934631388,0.05555121,3208.6,3208.4,0.193]
[1736934632100,0.05555121,3208.6,3208.5,0.03116337]
[1736934632297,0.05555121,3208.6,3208.5,3.14788337]
[1736934632596,0.05555121,3208.6,3208.5,3.11672]
[1736934632768,0.05555121,3208.6,3208.4,0.193]
[1736934633469,0.05555121,3208.8,3208.4,0.193]
[1736934633676,0.05555121,3208.6,3208.4,0.193]
[1736934633991,0.05555121,3208.8,3208.4,0.193]
[1736934634203,0.05555121,3208.6,3208.5,0.0311639]
[1736934634368,0.05180005,3208.9,3208.5,3.1478839]
[1736934634581,0.05180005,3208.9,3208.8,3.11642]
[1736934635281,0.05180005,3208.9,3208.5,0.36525229]
[1736934635455,0.05180005,3208.9,3208.7,3.11651]
[1736934635861,0.05180005,3208.9,3208.3,3.1169]
[1736934636100,0.05180005,3208.4,3208.1,0.005]
[1736934636265,0.87630005,3208.4,3208.2,0.193]
[1736934637701,0.05180005,3208.4,3208.2,0.193]
[1736934638303,0.05180005,3208.6,3208.3,3.11691]
[1736934638968,0.05180005,3208.4,3208.3,3.11691]
[1736934639165,0.05180005,3208.6,3208.4,3.11681]
[1736934641410,0.05180005,3208.6,3208.3,0.193]
[1736934641767,0.05180005,3209.0,3208.4,3.61857641]
[1736934641963,0.05180005,3209.4,3209.1,3.11605]
[1736934642305,0.05180005,3209.4,3209.2,0.22415948]
[1736934642601,0.05180005,3209.4,3209.3,0.193]
[1736934644307,0.05180005,3209.4,3209.0,0.03115675]
[1736934644308,0.8245,3209.3,3209.0,0.03115675]
[1736934644480,0.87630005,3208.4,3208.1,3.12202]
[1736934644810,0.87630005,3208.4,3208.1,0.005]
[1736934645381,0.05180005,3208.4,3208.2,3.11699]
[1736934646078,0.05180005,3208.4,3208.1,0.005]
[1736934646630,0.05180005,3208.2,3208.1,0.005]
[1736934647176,0.87630005,3208.2,3208.1,0.005]
[1736934647819,1.42630005,3208.2,3208.1,0.005]
[1736934648027,1.33452258,3208.2,3208.1,0.005]
[1736934648222,0.87630005,3208.2,3208.1,0.005]
[1736934648772,0.91526819,3208.2,3208.1,0.005]
[1736934649024,0.87630005,3208.2,3208.1,0.005]
[1736934649827,1.42630005,3208.2,3208.1,0.005]
[1736934650191,0.87630005,3208.2,3208.1,0.005]
[1736934650891,1.81393006,3208.2,3208.1,0.005]
[1736934651097,7.93094006,3208.2,3208.1,0.005]
[1736934651296,11.51835145,3208.2,3208.1,0.005]
[1736934652718,11.57511443,3208.2,3208.1,0.005]
[1736934653302,6.92129005,3207.5,3207.4,1.25]
[1736934653500,4.49572906,3207.5,3207.4,1.25]
[1736934653903,5.04572906,3207.5,3207.4,1.25]
[1736934654211,4.49572906,3207.5,3207.4,1.25]
[1736934654832,1.49572906,3207.5,3207.4,1.25]
[1736934655038,0.80360005,3207.5,3207.4,1.25]
[1736934655243,8.05870144,3207.5,3207.4,1.25]
[1736934655411,1.35360005,3206.8,3206.7,4.2e-06]
[1736934655606,6.92294005,3205.8,3205.7,3.90249596]
[1736934655798,6.92294005,3205.8,3205.4,3.90249596]
[1736934655799,3.0,3205.7,3205.4,3.90249596]
[1736934655997,7.39101144,3205.8,3205.4,3.90249596]
[1736934655998,3.76033992,3205.6,3205.4,3.90249596]
[1736934656236,0.84259992,3205.6,3205.4,3.90249596]
[1736934656434,0.80360005,3205.6,3205.4,3.90249596]
[1736934656648,0.05180005,3205.8,3205.5,0.68525727]
[1736934656829,0.7518,3206.1,3205.5,0.0008]
[1736934656830,0.05180005,3205.6,3205.5,0.0008]
[1736934657226,0.05180005,3205.4,3203.9,3.90249596]
[1736934657412,0.05676298,3205.6,3205.1,3.12]
[1736934657601,0.05180005,3206.1,3205.6,3.11954]
[1736934657805,0.05180005,3206.4,3205.7,0.03119237]
[1736934658005,0.05180005,3206.0,3205.5,0.03118655]
[1736934658207,3.58741139,3206.9,3205.6,0.41368066]
[1736934658208,0.05180005,3206.4,3205.6,0.41368066]
[1736934658509,0.05180005,3206.4,3205.7,0.0311883]
[1736934658938,0.05180005,3206.4,3205.8,3.11933]
[1736934659605,0.05180005,3206.4,3205.9,0.0311881]
[1736934659806,0.05180005,3206.4,3205.6,3.11954]
[1736934660006,0.05180005,3206.4,3205.7,0.65821678]
[1736934660234,0.05180005,3206.4,3206.0,3.11913]
[1736934660845,0.05180005,3206.4,3205.8,0.211]
[1736934660846,0.05180005,3206.4,3206.1,3.15022713]
[1736934661548,0.05180005,3206.4,3206.1,0.03118713]
[1736934661842,0.05180005,3206.4,3206.0,0.03118654]
[1736934662054,0.05180005,3206.4,3206.2,3.11895]
[1736934662219,0.05180005,3206.4,3206.0,0.36732819]
[1736934662566,0.05180005,3206.4,3206.2,3.11895]
[1736934662774,0.7518,3207.1,3206.4,3.11875]
[1736934662775,0.05180005,3206.6,3206.4,3.11875]
[1736934662912,0.05180005,3205.6,3205.3,2.94127671]
[1736934663114,0.05180005,3205.4,3205.3,2.94127671]
[1736934664015,0.05180005,3206.0,3205.6,3.11952]
[1736934664219,0.05180005,3205.8,3205.6,3.11952]
[1736934664414,0.05180005,3205.8,3205.3,3.92887671]
[1736934664415,0.05180005,3205.8,3205.4,3.11969]
[1736934664747,0.05180005,3205.8,3205.4,3.11973]
[1736934665066,0.05180005,3205.8,3205.3,3.92887671]
[1736934665363,0.05180005,3206.2,3205.4,0.4240785]
[1736934665715,0.05180005,3205.8,3205.4,0.4240785]
[1736934665917,0.05180005,3206.0,3205.7,3.1194]
[1736934666149,0.05180005,3205.8,3205.7,3.1194]
[1736934666361,0.05180005,3206.0,3205.7,3.1194]
[1736934666746,0.05180005,3206.0,3205.8,3.1505303]
[1736934667363,0.05180005,3206.0,3205.8,0.0311903]
[1736934667963,0.05180005,3206.2,3205.9,3.11924]
[1736934668147,0.05180005,3206.0,3205.9,3.11924]
[1736934668334,0.826,3206.7,3206.1,3.11905]
[1736934668335,0.05180005,3206.4,3206.1,3.11905]
[1736934668533,0.05180005,3206.4,3206.2,0.03118657]
[1736934668732,0.05180005,3206.2,3206.0,0.7546]
[1736934669065,0.05180005,3206.4,3206.1,3.11902]
[1736934669267,0.05180005,3206.4,3206.2,0.03118657]
[1736934669433,0.05180005,3206.7,3206.4,3.11874]
[1736934669636,0.05180005,3206.7,3206.4,3.35174]
[1736934670364,3.9437,3207.5,3206.4,3.35174]
[1736934670365,0.05180005,3206.9,3206.6,3.11856]
[1736934670559,0.05180005,3206.7,3206.6,3.11856]
[1736934670857,0.05180005,3206.5,3206.4,0.233]
[1736934671660,0.05180005,3206.5,3206.0,0.7546]
[1736934671859,0.05180005,3206.5,3206.3,0.233]
[1736934672561,0.05180005,3206.5,3206.4,3.14994673]
[1736934672857,0.05180005,3206.5,3206.3,0.233]
[1736934673370,0.05180005,3206.1,3206.0,0.233]
[1736934673521,0.05180005,3206.1,3206.0,3.35215]
[1736934673922,0.05180005,3206.5,3206.3,3.11884]
[1736934674122,0.05180005,3206.5,3206.1,0.0311833]
[1736934674429,0.05180005,3206.5,3206.4,3.87336]
[1736934674624,0.05180005,3206.5,3206.4,3.90454322]
[1736934674961,0.05180005,3207.1,3206.4,0.78578322]
[1736934675285,0.05180005,3206.9,3206.8,3.11835]
[1736934675430,0.05180005,3206.8,3206.5,3.11863]
[1736934675781,0.05180005,3206.8,3206.4,0.7546]
[1736934675929,0.05180005,3206.6,3206.5,0.233]
[1736934677573,0.05180005,3206.6,3206.4,0.7546]
[1736934677775,0.05180005,3206.6,3206.2,3.11893]
[1736934678085,0.05180005,3206.6,3206.3,0.233]
[1736934678289,0.05180005,3206.2,3205.8,3.11934]
[1736934678508,0.05180005,3206.2,3205.9,0.233]
[1736934679247,0.05180005,3206.2,3205.7,0.7546]
[1736934679248,0.05180005,3206.2,3205.8,3.15052982]
[1736934679561,0.05180005,3206.2,3205.8,0.233]
[1736934679761,0.05180005,3205.9,3205.7,0.233]
[1736934679978,0.05180005,3205.9,3205.4,0.7546]
[1736934679979,0.05180005,3205.7,3205.4,0.7546]
[1736934680380,0.05180005,3205.7,3205.5,0.233]
[1736934680715,0.05180005,3205.7,3205.5,3.35261]
[1736934681372,0.05180005,3205.7,3205.5,0.233]
[1736934681977,0.05180005,3206.0,3205.5,3.35262]
[1736934682139,0.05180005,3205.9,3205.5,3.35262]
[1736934682340,0.05180005,3205.7,3205.5,0.233]
[1736934682876,0.05180005,3205.7,3205.3,2.94127671]
[1736934683076,0.05180005,3205.5,3205.3,3.17427671]
[1736934683285,0.05180005,3205.5,3205.3,2.94127671]
[1736934686453,0.09079554,3205.5,3205.3,2.94127671]
[1736934686652,0.05180005,3205.5,3205.3,2.94127671]
[1736934687084,0.826,3205.4,3205.3,2.94127671]
[1736934687387,0.826,3205.4,3203.6,1.250232]
[1736934687388,3.12106,3204.1,3203.6,1.250232]
[1736934687561,0.7259,3204.2,3203.5,0.1657842]
[1736934687562,0.77770005,3203.6,3203.5,0.1657842]
[1736934687763,7.36511144,3203.6,3203.5,0.1657842]
[1736934687972,3.77770005,3203.6,3203.5,0.1657842]
[1736934688199,3.8167241,3203.6,3203.5,0.1657842]
[1736934688391,3.77770005,3203.6,3203.5,0.1657842]
[1736934688688,0.05180005,3203.6,3203.5,0.1657842]
[1736934689781,0.826,3204.4,3203.5,3.2873642]
[1736934689782,0.05180005,3203.7,3203.5,3.2873642]
[1736934690100,0.05180005,3203.7,3203.5,3.55157464]
[1736934690281,0.05180005,3203.7,3203.5,0.3987842]
[1736934690665,0.05180005,3204.0,3203.6,0.03120988]
[1736934690868,0.05180005,3204.0,3203.8,3.12127]
[1736934691069,0.05180005,3203.7,3203.6,0.03120988]
[1736934691292,0.05180005,3203.9,3203.6,0.61935829]
[1736934691504,0.00180005,3203.9,3203.6,0.26420988]
[1736934691708,0.00180005,3204.1,3203.7,3.87595]
[1736934691860,0.00180005,3203.9,3203.8,0.03120862]
[1736934692059,0.55,3204.7,3203.8,0.03120862]
[1736934692259,0.77780005,3204.8,3203.8,3.15246862]
[1736934692464,0.03900872,3204.7,3203.8,3.15246862]
[1736934692799,0.76680877,3204.8,3203.8,3.56647548]
[1736934693098,0.71680877,3204.8,3203.8,3.56647548]
[1736934693396,0.71680877,3204.8,3203.8,0.44521548]
[1736934693605,0.71680877,3204.8,3203.5,0.1657842]
[1736934693606,3.12073,3204.4,3203.5,0.1657842]
[1736934693772,3.58741139,3204.5,3203.5,0.1657842]
[1736934694166,3.58741139,3204.5,3203.5,0.3937842]
[1736934694466,0.55,3204.6,3203.5,0.3937842]
[1736934694687,3.12066,3204.5,3203.5,0.74532962]
[1736934694886,3.12066,3204.5,3203.5,0.3937842]
[1736934695192,3.58741139,3204.5,3203.5,0.1657842]
[1736934695393,3.12112,3204.0,3203.5,0.1657842]
[1736934695598,3.12128,3203.9,3203.5,0.1657842]
[1736934695795,3.55,3204.0,3203.5,0.1657842]
[1736934696002,6.6711,3204.0,3203.5,0.1657842]
[1736934696302,0.7464,3203.9,3203.5,0.1657842]
[1736934700993,3.86722,3204.3,3203.5,0.1657842]
[1736934701193,0.7464,3204.3,3203.5,0.1657842]
[1736934701716,0.55,3204.2,3203.5,0.1657842]
[1736934701918,0.7464,3204.3,3203.5,0.1657842]
[1736934701919,4.41788,3203.6,3203.5,0.1657842]
[1736934702213,1.2964,3203.6,3203.5,0.1657842]
[1736934702703,0.7464,3203.6,3203.5,0.1657842]
[1736934702898,3.0,3203.8,3203.5,0.1657842]
[1736934703704,3.67148,3203.6,3203.5,0.1657842]
[1736934704821,7.41788,3203.6,3203.5,0.1657842]
[1736934705979,3.7464,3203.6,3203.5,0.1657842]
[1736934706195,0.7464,3203.6,3203.5,0.1657842]
[1736934706494,0.7464,3204.0,3203.5,0.1657842]
[1736934708489,0.55,3203.9,3203.5,0.1657842]
[1736934708996,3.12133,3203.8,3203.5,0.1657842]
[1736934709679,3.12142,3203.7,3203.5,0.1657842]
[1736934709882,0.55,3203.6,3203.5,0.1657842]
[1736934710407,3.1212,3203.9,3203.5,0.1657842]
[1736934710613,3.1214,3203.7,3203.5,0.1657842]
[1736934710815,0.7464,3204.0,3203.5,0.1657842]
[1736934711017,0.02959366,3204.1,3203.5,0.1657842]
[1736934711181,0.55,3204.1,3203.5,0.1657842]
[1736934711377,0.7464,3204.3,3203.5,0.19699896]
[1736934711614,0.7464,3204.3,3203.5,0.1657842]
[1736934712715,3.67092,3204.2,3203.5,0.1657842]
[1736934713592,3.12092,3204.2,3203.5,0.1657842]
[1736934713797,0.7464,3204.3,3203.5,0.1657842]
[1736934713996,0.55,3204.2,3203.5,0.1657842]
[1736934714196,3.55,3204.2,3203.5,0.1657842]
[1736934714512,3.67091,3204.2,3203.5,0.1657842]
[1736934714818,0.7464,3205.3,3203.7,4.36841139]
[1736934715005,3.12001,3205.2,3204.1,3.12098]
[1736934715192,3.12001,3205.2,3203.8,0.49084794]
[1736934715193,3.12001,3205.2,3204.2,3.93309682]
[1736934716023,0.7464,3205.6,3204.2,0.81220682]
[1736934716494,0.7464,3205.6,3204.6,3.12051]
[1736934716683,3.11935,3205.8,3204.7,3.93258134]
[1736934716890,0.7464,3205.9,3204.8,3.53627813]
[1736934718025,3.11905,3206.1,3205.0,0.781]
[1736934718325,3.11905,3206.1,3205.1,0.03119646]
[1736934718727,3.0,3206.0,3205.1,0.03119646]
[1736934718927,3.0,3206.0,3205.1,3.15121646]
[1736934719128,0.7464,3206.3,3205.1,0.42441811]
[1736934719295,3.11866,3206.5,3205.3,3.11973]
[1736934720497,3.0,3206.3,3205.3,3.11973]
[1736934720695,0.55,3206.5,3205.5,0.781]
[1736934721014,0.7464,3206.9,3205.8,3.11933]
[1736934721219,0.7464,3206.9,3205.6,3.34753]
[1736934721220,3.11847,3206.7,3205.6,3.34753]
[1736934721422,3.11847,3206.7,3205.6,3.7946936]
[1736934721641,0.7464,3206.9,3205.7,0.781]
[1736934721791,3.1182,3207.0,3205.8,3.15043959]
[1736934722195,3.1182,3207.0,3205.9,3.11916]
[1736934722396,0.7464,3207.1,3205.9,0.03118815]
[1736934722595,3.11798,3207.2,3206.2,0.781]
[1736934722828,3.0,3207.0,3206.2,0.781]
[1736934723529,0.7464,3207.4,3206.3,3.11884]
[1736934723894,3.7464,3207.4,3206.4,0.03118383]
[1736934724237,3.11782,3207.4,3206.3,3.11884]
[1736934724418,0.55,3207.3,3206.3,3.11884]
[1736934724620,0.55,3207.3,3206.2,1.17413162]
[1736934724934,0.55,3207.2,3206.2,0.781]
[1736934725097,3.11871,3206.5,3205.6,0.222]
[1736934725296,3.55,3206.8,3205.6,0.222]
[1736934725630,3.11827,3206.9,3205.6,0.222]
[1736934725631,0.55,3206.7,3205.6,0.222]
[1736934725796,3.0,3207.1,3205.8,0.804]
[1736934725990,3.11828,3206.9,3205.9,0.392342]
[1736934726248,3.66808,3207.1,3206.1,0.804]
[1736934726400,3.66808,3207.1,3206.1,3.92305]
[1736934726727,3.66808,3207.1,3206.1,0.804]
[1736934727229,0.55,3207.0,3206.1,0.804]
[1736934727529,3.55,3206.9,3206.1,0.804]
[1736934727738,0.7464,3206.9,3206.1,0.804]
[1736934727910,0.55,3206.5,3206.1,0.804]
[1736934729653,3.11867,3206.5,3206.1,0.804]
[1736934730353,3.55,3206.6,3206.1,0.804]
[1736934730711,6.11825,3207.0,3206.1,0.804]
[1736934730918,3.11832,3206.9,3206.1,0.804]
[1736934731271,3.0,3207.0,3205.5,0.7648]
[1736934731272,3.11905,3206.1,3205.5,0.7648]
[1736934731548,3.55,3206.0,3204.9,0.7648]
[1736934731721,3.11965,3205.5,3204.9,0.7648]
[1736934733112,0.7464,3206.1,3204.9,3.885]
[1736934733317,0.55,3206.0,3205.0,0.3885]
[1736934733944,3.11945,3205.7,3204.9,0.7648]
[1736934734150,0.55,3206.0,3204.9,0.7648]
[1736934734450,3.66938,3205.8,3204.9,0.7648]
[1736934735772,3.11945,3205.7,3204.9,0.7648]
[1736934735953,3.11983,3205.3,3204.9,0.7648]
[1736934736158,3.12004,3205.1,3204.9,0.7648]
[1736934736360,0.55,3205.4,3204.3,0.7648]
[1736934736650,0.55,3205.0,3204.3,0.7648]
[1736934740524,3.0,3205.7,3204.3,0.7648]
[1736934740725,3.0,3205.7,3204.4,0.03120216]
[1736934741056,3.11971,3205.5,3204.5,3.88539]
[1736934741224,3.58741139,3205.8,3204.6,0.7648]
[1736934741424,3.11991,3205.3,3204.6,0.7648]
[1736934741863,3.0,3205.0,3203.6,0.7648]
[1736934742173,0.55,3204.5,3203.8,0.7648]
[1736934742329,0.7464,3204.9,3203.8,0.7648]
[1736934742676,3.12046,3204.7,3203.8,0.7648]
[1736934742884,3.58741139,3205.5,3203.9,0.7648]
[1736934743041,3.11991,3205.3,3204.2,0.7648]
[1736934743385,3.11991,3205.3,3204.2,1.15649954]
[1736934743678,0.55,3205.2,3204.2,1.15649954]
[1736934743826,0.55,3205.3,3204.2,1.15649954]
[1736934744029,3.0,3205.1,3204.2,1.15649954]
[1736934744279,0.55,3205.3,3204.2,1.15649954]
[1736934744566,3.12014,3205.0,3204.2,0.7648]
[1736934744945,3.12024,3204.9,3204.2,0.7648]
[1736934745631,3.58741139,3204.7,3204.2,0.7648]
[1736934745828,0.55,3204.6,3203.6,0.7648]
[1736934746045,0.55,3204.6,3203.5,0.1657842]
[1736934746046,3.12141,3203.7,3203.5,0.1657842]
[1736934747063,3.58741139,3204.3,3203.5,0.1657842]
[1736934747284,3.0,3204.2,3203.5,0.1657842]
[1736934747597,0.7464,3204.5,3203.5,0.1657842]
[1736934747731,0.55,3204.3,3203.5,0.1657842]
[1736934748130,0.7464,3204.5,3203.5,0.1657842]
[1736934748131,0.05718708,3204.6,3203.6,0.79601268]
[1736934748402,4.33381139,3205.1,3203.8,0.7648]
[1736934748604,0.55,3204.9,3203.9,3.15238878]
[1736934748779,3.0,3204.8,3203.9,3.15238878]
[1736934748976,3.12005,3205.1,3204.0,3.88588]
[1736934749308,3.11983,3205.3,3204.2,3.88569]
[1736934749471,3.0,3205.2,3204.2,3.88569]
[1736934749671,0.55,3205.2,3204.2,3.88569]
[1736934749873,0.55,3205.2,3204.3,3.1208]
[1736934750273,3.55,3205.2,3204.2,0.7648]
[1736934750472,3.55,3205.2,3204.2,1.13388858]
[1736934750679,3.86604,3205.5,3204.4,0.8309]
[1736934750868,3.58741139,3205.7,3204.5,0.03120388]
[1736934751069,3.55,3205.6,3204.6,0.8309]
[1736934751268,3.0,3205.4,3204.6,0.8309]
[1736934752005,3.0,3205.4,3204.6,3.9514]
[1736934752372,3.0,3205.4,3204.6,0.8309]
[1736934752373,3.11993,3205.2,3204.6,0.8309]
[1736934752566,3.58741139,3204.8,3204.2,0.8309]
[1736934752792,0.55,3204.7,3204.2,0.8309]
[1736934753007,3.12073,3204.4,3204.2,0.8309]
[1736934753192,0.55,3204.5,3203.9,0.778]
[1736934753512,6.12109,3204.0,3203.9,0.778]
[1736934753681,0.55,3204.4,3203.5,0.9437842]